[Event "Titled Tuesday Blitz March 01 Late 2022"]
[White "Al-Tarboush, Ward"]
[Black "Li, Ben"]
[WhiteFideId "7601450"]
[BlackFideId "2089980"]
[WhiteElo "2276"]
[BlackElo "2267"]
[Result "0-1"]
[Round "11"]
[TimeControl "180+1"]
[Date "2022.03.01"]
[WhiteClock "0:00:56"]
[BlackClock "0:00:36"]

1. e4 {[%clk 0:03:00]}  e5 {[%clk 0:02:59]} 2. Nf3 {[%clk 0:03:00]}  Nf6 {[%clk 0:02:59]} 3. Nxe5 {[%clk 0:02:57]}  d6 {[%clk 0:02:59]} 4. Nf3 {[%clk 0:02:57]}  Nxe4 {[%clk 0:03:00]} 5. Nc3 {[%clk 0:02:57]}  Nxc3 {[%clk 0:03:00]} 6. dxc3 {[%clk 0:02:58]}  Be7 {[%clk 0:03:01]} 7. Bd3 {[%clk 0:02:57]}  O-O {[%clk 0:03:01]} 8. Bf4 {[%clk 0:02:58]}  Nd7 {[%clk 0:03:01]} 9. Qd2 {[%clk 0:02:56]}  Nc5 {[%clk 0:03:02]} 10. Bc4 {[%clk 0:02:52]}  Be6 {[%clk 0:02:57]} 11. Bb3 {[%clk 0:02:50]}  Nxb3 {[%clk 0:02:54]} 12. axb3 {[%clk 0:02:51]}  Re8 {[%clk 0:02:51]} 13. O-O {[%clk 0:02:50]}  h6 {[%clk 0:02:47]} 14. Nd4 {[%clk 0:02:50]}  Bd7 {[%clk 0:02:46]} 15. Rfe1 {[%clk 0:02:50]}  Bf6 {[%clk 0:02:46]} 16. b4 {[%clk 0:02:49]}  a6 {[%clk 0:02:43]} 17. c4 {[%clk 0:02:46]}  Rxe1+ {[%clk 0:02:26]} 18. Rxe1 {[%clk 0:02:45]}  Qf8 {[%clk 0:02:27]} 19. c3 {[%clk 0:02:41]}  Re8 {[%clk 0:02:19]} 20. h3 {[%clk 0:02:41]}  Rxe1+ {[%clk 0:01:33]} 21. Qxe1 {[%clk 0:02:41]}  Qe7 {[%clk 0:01:33]} 22. Qxe7 {[%clk 0:02:35]}  Bxe7 {[%clk 0:01:34]} 23. Nb3 {[%clk 0:02:36]}  Ba4 {[%clk 0:01:33]} 24. Nd2 {[%clk 0:02:33]}  g5 {[%clk 0:01:31]} 25. Be3 {[%clk 0:02:33]}  f5 {[%clk 0:01:31]} 26. g3 {[%clk 0:02:30]}  Kf7 {[%clk 0:01:31]} 27. f3 {[%clk 0:02:30]}  Ke6 {[%clk 0:01:31]} 28. Kf2 {[%clk 0:02:30]}  Bf6 {[%clk 0:01:31]} 29. Ke2 {[%clk 0:02:29]}  b6 {[%clk 0:01:31]} 30. Kd3 {[%clk 0:02:29]}  Bd1 {[%clk 0:01:26]} 31. Bd4 {[%clk 0:02:28]}  Be5 {[%clk 0:01:16]} 32. Bf2 {[%clk 0:02:18]}  f4 {[%clk 0:01:14]} 33. g4 {[%clk 0:02:17]}  b5 {[%clk 0:01:06]} 34. cxb5 {[%clk 0:02:09]}  axb5 {[%clk 0:01:07]} 35. h4 {[%clk 0:02:09]}  Kd5 {[%clk 0:01:00]} 36. h5 {[%clk 0:02:08]}  Ke6 {[%clk 0:00:59]} 37. b3 {[%clk 0:01:57]}  c6 {[%clk 0:00:57]} 38. c4 {[%clk 0:01:56]}  Bb2 {[%clk 0:00:54]} 39. Bd4 {[%clk 0:01:20]}  Bxd4 {[%clk 0:00:42]} 40. Kxd4 {[%clk 0:01:21]}  Be2 {[%clk 0:00:40]} 41. Kc3 {[%clk 0:01:14]}  Ke5 {[%clk 0:00:39]} 42. c5 {[%clk 0:00:56]}  d5 {[%clk 0:00:36]} 0-1


[Site "https://www.chess.com"]

[Event "Titled Tuesday Blitz March 01 Late 2022"]
[White "Ardila, Oscar Humberto"]
[Black "Elissalt Cardenas, Hector"]
[WhiteFideId "4404742"]
[BlackFideId "3500632"]
[WhiteElo "1898"]
[BlackElo "2159"]
[Result "0-1"]
[Round "11"]
[TimeControl "180+1"]
[Date "2022.03.02"]
[WhiteClock "0:00:05"]
[BlackClock "0:00:12"]

1. d4 {[%clk 0:03:00]}  d5 {[%clk 0:02:55]} 2. c4 {[%clk 0:03:01]}  e6 {[%clk 0:02:54]} 3. Nc3 {[%clk 0:02:59]}  Nf6 {[%clk 0:02:54]} 4. Bg5 {[%clk 0:02:59]}  Be7 {[%clk 0:02:54]} 5. e3 {[%clk 0:02:59]}  Nbd7 {[%clk 0:02:51]} 6. Nf3 {[%clk 0:02:59]}  h6 {[%clk 0:02:50]} 7. Bh4 {[%clk 0:02:59]}  O-O {[%clk 0:02:50]} 8. Qc2 {[%clk 0:02:58]}  c6 {[%clk 0:02:09]} 9. c5 {[%clk 0:02:53]}  b6 {[%clk 0:02:04]} 10. b4 {[%clk 0:02:52]}  a5 {[%clk 0:01:58]} 11. bxa5 {[%clk 0:02:45]}  bxc5 {[%clk 0:01:51]} 12. Be2 {[%clk 0:02:37]}  Qxa5 {[%clk 0:01:47]} 13. O-O {[%clk 0:02:36]}  c4 {[%clk 0:01:47]} 14. Rab1 {[%clk 0:02:31]}  Bb4 {[%clk 0:01:34]} 15. Rxb4 {[%clk 0:02:18]}  Qxb4 {[%clk 0:01:32]} 16. Rb1 {[%clk 0:02:18]}  Qa3 {[%clk 0:01:13]} 17. h3 {[%clk 0:02:06]}  Ra7 {[%clk 0:01:05]} 18. g4 {[%clk 0:01:55]}  Rb7 {[%clk 0:01:00]} 19. g5 {[%clk 0:01:48]}  hxg5 {[%clk 0:00:55]} 20. Bxg5 {[%clk 0:01:47]}  Rxb1+ {[%clk 0:00:54]} 21. Nxb1 {[%clk 0:01:47]}  Qe7 {[%clk 0:00:49]} 22. Nc3 {[%clk 0:01:46]}  e5 {[%clk 0:00:48]} 23. e4 {[%clk 0:01:33]}  exd4 {[%clk 0:00:27]} 24. Nxd4 {[%clk 0:01:32]}  Qe5 {[%clk 0:00:25]} 25. Nf3 {[%clk 0:01:32]}  Qd6 {[%clk 0:00:23]} 26. Qd2 {[%clk 0:01:01]}  Qb4 {[%clk 0:00:19]} 27. e5 {[%clk 0:00:56]}  Ne4 {[%clk 0:00:19]} 28. Nxe4 {[%clk 0:00:56]}  Qb1+ {[%clk 0:00:19]} 29. Kg2 {[%clk 0:00:24]}  Qxe4 {[%clk 0:00:18]} 30. Qe3 {[%clk 0:00:24]}  Qxe3 {[%clk 0:00:17]} 31. Bxe3 {[%clk 0:00:23]}  Re8 {[%clk 0:00:18]} 32. Bf4 {[%clk 0:00:19]}  c5 {[%clk 0:00:18]} 33. Bd1 {[%clk 0:00:17]}  Nb6 {[%clk 0:00:18]} 34. Bc2 {[%clk 0:00:16]}  Be6 {[%clk 0:00:18]} 35. Ng5 {[%clk 0:00:15]}  d4 {[%clk 0:00:18]} 36. Bh7+ {[%clk 0:00:14]}  Kf8 {[%clk 0:00:17]} 37. Be4 {[%clk 0:00:13]}  c3 {[%clk 0:00:16]} 38. Nh7+ {[%clk 0:00:12]}  Kg8 {[%clk 0:00:16]} 39. Ng5 {[%clk 0:00:12]}  Nc4 {[%clk 0:00:15]} 40. Nxe6 {[%clk 0:00:08]}  fxe6 {[%clk 0:00:14]} 41. a4 {[%clk 0:00:09]}  Nd2 {[%clk 0:00:14]} 42. Bd3 {[%clk 0:00:07]}  c4 {[%clk 0:00:14]} 43. Bf1 {[%clk 0:00:04]}  d3 {[%clk 0:00:13]} 44. a5 {[%clk 0:00:03]}  Nxf1 {[%clk 0:00:13]} 45. Kxf1 {[%clk 0:00:03]}  c2 {[%clk 0:00:12]} 46. Ke1 {[%clk 0:00:03]}  c3 {[%clk 0:00:12]} 47. a6 {[%clk 0:00:02]}  Ra8 {[%clk 0:00:12]} 48. Bc1 {[%clk 0:00:03]}  Rxa6 {[%clk 0:00:12]} 49. f3 {[%clk 0:00:04]}  Ra1 {[%clk 0:00:12]} 50. Kf2 {[%clk 0:00:05]}  Rxc1 {[%clk 0:00:12]} 0-1


[Site "https://www.chess.com"]

[Event "Titled Tuesday Blitz March 01 Late 2022"]
[White "Balint, Vilmos"]
[Black "Perez Torres, Nabi Isaias"]
[WhiteFideId "718050"]
[BlackFideId "5120373"]
[WhiteElo "2059"]
[BlackElo "1755"]
[Result "0-1"]
[Round "11"]
[TimeControl "180+1"]
[Date "2022.03.02"]
[WhiteClock "0:01:33"]
[BlackClock "0:01:29"]

1. e4 {[%clk 0:02:50]}  c5 {[%clk 0:02:59]} 2. c4 {[%clk 0:02:49]}  g6 {[%clk 0:02:56]} 3. Nc3 {[%clk 0:02:48]}  Bg7 {[%clk 0:02:56]} 4. h4 {[%clk 0:02:47]}  h5 {[%clk 0:02:55]} 5. Nf3 {[%clk 0:02:46]}  Nc6 {[%clk 0:02:56]} 6. d3 {[%clk 0:02:47]}  Nf6 {[%clk 0:02:51]} 7. Be3 {[%clk 0:02:47]}  b6 {[%clk 0:02:48]} 8. Ng5 {[%clk 0:02:43]}  d6 {[%clk 0:02:46]} 9. Be2 {[%clk 0:02:39]}  Ne5 {[%clk 0:02:41]} 10. f3 {[%clk 0:02:34]}  a6 {[%clk 0:02:36]} 11. a4 {[%clk 0:02:32]}  Bd7 {[%clk 0:02:30]} 12. Qd2 {[%clk 0:02:32]}  b5 {[%clk 0:02:25]} 13. axb5 {[%clk 0:02:32]}  axb5 {[%clk 0:02:25]} 14. Rxa8 {[%clk 0:02:32]}  Qxa8 {[%clk 0:02:25]} 15. cxb5 {[%clk 0:02:32]}  O-O {[%clk 0:02:24]} 16. O-O {[%clk 0:02:29]}  Rb8 {[%clk 0:02:24]} 17. d4 {[%clk 0:02:28]}  cxd4 {[%clk 0:02:22]} 18. Bxd4 {[%clk 0:02:28]}  Ne8 {[%clk 0:02:20]} 19. Nd5 {[%clk 0:02:26]}  e6 {[%clk 0:02:15]} 20. Nc3 {[%clk 0:02:18]}  Nc7 {[%clk 0:02:08]} 21. b6 {[%clk 0:02:18]}  Na6 {[%clk 0:02:04]} 22. Ra1 {[%clk 0:02:12]}  Bc8 {[%clk 0:02:03]} 23. Qd3 {[%clk 0:02:09]}  Qc6 {[%clk 0:01:53]} 24. Bxe5 {[%clk 0:02:08]}  Bxe5 {[%clk 0:01:52]} 25. Rxa6 {[%clk 0:02:08]}  Bxa6 {[%clk 0:01:46]} 26. Qxa6 {[%clk 0:02:09]}  Rxb6 {[%clk 0:01:46]} 27. Qa7 {[%clk 0:02:04]}  Rb7 {[%clk 0:01:44]} 28. Qa8+ {[%clk 0:02:02]}  Kg7 {[%clk 0:01:44]} 29. Kf1 {[%clk 0:01:39]}  Qb6 {[%clk 0:01:38]} 30. Qa2 {[%clk 0:01:35]}  Ra7 {[%clk 0:01:30]} 31. Qb1 {[%clk 0:01:33]}  Bxc3 {[%clk 0:01:30]} 32. b3 {[%clk 0:01:33]}  Ra1 {[%clk 0:01:29]} 0-1


[Site "https://www.chess.com"]

[Event "Titled Tuesday Blitz March 01 Late 2022"]
[White "Bibasa, Bob"]
[Black "Csonka, Balazs"]
[WhiteFideId "10000240"]
[BlackFideId "742910"]
[WhiteElo "2056"]
[BlackElo "2404"]
[Result "0-1"]
[Round "11"]
[TimeControl "180+1"]
[Date "2022.03.01"]
[WhiteClock "0:00:18"]
[BlackClock "0:00:06"]

1. e4 {[%clk 0:03:00]}  c5 {[%clk 0:02:59]} 2. Nf3 {[%clk 0:03:00]}  e6 {[%clk 0:02:59]} 3. Nc3 {[%clk 0:03:00]}  Nc6 {[%clk 0:02:52]} 4. Bb5 {[%clk 0:03:00]}  Nge7 {[%clk 0:02:51]} 5. O-O {[%clk 0:03:00]}  a6 {[%clk 0:02:44]} 6. Be2 {[%clk 0:03:00]}  Nd4 {[%clk 0:02:40]} 7. d3 {[%clk 0:02:53]}  Nec6 {[%clk 0:02:40]} 8. Re1 {[%clk 0:02:42]}  g6 {[%clk 0:02:33]} 9. Bf4 {[%clk 0:02:30]}  d6 {[%clk 0:02:25]} 10. Bf1 {[%clk 0:02:19]}  Bg7 {[%clk 0:02:24]} 11. Rb1 {[%clk 0:02:14]}  O-O {[%clk 0:02:21]} 12. Nxd4 {[%clk 0:02:14]}  cxd4 {[%clk 0:02:17]} 13. Ne2 {[%clk 0:02:12]}  e5 {[%clk 0:02:13]} 14. Bd2 {[%clk 0:02:10]}  Be6 {[%clk 0:02:13]} 15. b3 {[%clk 0:02:07]}  d5 {[%clk 0:02:07]} 16. Ng3 {[%clk 0:01:59]}  dxe4 {[%clk 0:01:47]} 17. dxe4 {[%clk 0:01:56]}  Qh4 {[%clk 0:01:33]} 18. Bd3 {[%clk 0:01:40]}  Rac8 {[%clk 0:01:18]} 19. Qe2 {[%clk 0:01:29]}  Bh6 {[%clk 0:01:09]} 20. Bxh6 {[%clk 0:01:23]}  Qxh6 {[%clk 0:01:10]} 21. a3 {[%clk 0:01:15]}  Rc7 {[%clk 0:01:06]} 22. b4 {[%clk 0:01:08]}  Na7 {[%clk 0:00:53]} 23. a4 {[%clk 0:01:05]}  Rc3 {[%clk 0:00:43]} 24. b5 {[%clk 0:01:04]}  axb5 {[%clk 0:00:43]} 25. axb5 {[%clk 0:01:04]}  Nc8 {[%clk 0:00:43]} 26. Rb4 {[%clk 0:00:54]}  Nb6 {[%clk 0:00:39]} 27. h3 {[%clk 0:00:51]}  Rfc8 {[%clk 0:00:38]} 28. Qd1 {[%clk 0:00:41]}  Qf8 {[%clk 0:00:32]} 29. Rb1 {[%clk 0:00:39]}  Bc4 {[%clk 0:00:27]} 30. Ne2 {[%clk 0:00:36]}  Ra3 {[%clk 0:00:27]} 31. Ra1 {[%clk 0:00:33]}  Qb4 {[%clk 0:00:20]} 32. Rxa3 {[%clk 0:00:29]}  Qxa3 {[%clk 0:00:21]} 33. Nc1 {[%clk 0:00:25]}  Be6 {[%clk 0:00:18]} 34. Qd2 {[%clk 0:00:22]}  Qc3 {[%clk 0:00:16]} 35. Qxc3 {[%clk 0:00:21]}  Rxc3 {[%clk 0:00:17]} 36. Ne2 {[%clk 0:00:20]}  Ra3 {[%clk 0:00:17]} 37. Rc1 {[%clk 0:00:18]}  Bc4 {[%clk 0:00:15]} 38. Bxc4 {[%clk 0:00:17]}  Nxc4 {[%clk 0:00:16]} 39. f4 {[%clk 0:00:16]}  f6 {[%clk 0:00:14]} 40. fxe5 {[%clk 0:00:15]}  fxe5 {[%clk 0:00:14]} 41. Rb1 {[%clk 0:00:12]}  Ra2 {[%clk 0:00:12]} 42. Rc1 {[%clk 0:00:06]}  Ne3 {[%clk 0:00:12]} 43. Kf2 {[%clk 0:00:05]}  Nxc2 {[%clk 0:00:12]} 44. Kf3 {[%clk 0:00:03]}  Ra3+ {[%clk 0:00:09]} 45. Kf2 {[%clk 0:00:03]}  Ra2 {[%clk 0:00:09]} 46. Kf3 {[%clk 0:00:03]}  Ra3+ {[%clk 0:00:09]} 47. Kf2 {[%clk 0:00:04]}  d3 {[%clk 0:00:09]} 48. Ng3 {[%clk 0:00:04]}  Ra2 {[%clk 0:00:07]} 49. Kf3 {[%clk 0:00:03]}  Kf7 {[%clk 0:00:06]} 50. Rd1 {[%clk 0:00:03]}  Nd4+ {[%clk 0:00:06]} 51. Ke3 {[%clk 0:00:03]}  Rxg2 {[%clk 0:00:06]} 52. Nf1 {[%clk 0:00:03]}  d2 {[%clk 0:00:02]} 53. Nxd2 {[%clk 0:00:03]}  Nxb5 {[%clk 0:00:02]} 54. Nc4 {[%clk 0:00:03]}  Ke6 {[%clk 0:00:01]} 55. Rb1 {[%clk 0:00:03]}  Rg3+ {[%clk 0:00:02]} 56. Kf2 {[%clk 0:00:03]}  Rc3 {[%clk 0:00:02]} 57. Rxb5 {[%clk 0:00:03]}  Rxc4 {[%clk 0:00:02]} 58. Rb6+ {[%clk 0:00:04]}  Rc6 {[%clk 0:00:01]} 59. Rxb7 {[%clk 0:00:04]}  h5 {[%clk 0:00:01]} 60. Rg7 {[%clk 0:00:04]}  Kf6 {[%clk 0:00:02]} 61. Rg8 {[%clk 0:00:05]}  Kg5 {[%clk 0:00:02]} 62. Kg3 {[%clk 0:00:05]}  Rc3+ {[%clk 0:00:01]} 63. Kg2 {[%clk 0:00:05]}  Kf4 {[%clk 0:00:01]} 64. Rf8+ {[%clk 0:00:06]}  Kxe4 {[%clk 0:00:01]} 65. Rf6 {[%clk 0:00:06]}  Rc2+ {[%clk 0:00:01]} 66. Kg3 {[%clk 0:00:06]}  Rc3+ {[%clk 0:00:02]} 67. Kg2 {[%clk 0:00:06]}  g5 {[%clk 0:00:02]} 68. h4 {[%clk 0:00:06]}  gxh4 {[%clk 0:00:02]} 69. Rh6 {[%clk 0:00:06]}  Ke3 {[%clk 0:00:02]} 70. Rxh5 {[%clk 0:00:06]}  e4 {[%clk 0:00:03]} 71. Rxh4 {[%clk 0:00:07]}  Rc2+ {[%clk 0:00:03]} 72. Kf1 {[%clk 0:00:07]}  Rc1+ {[%clk 0:00:03]} 73. Kg2 {[%clk 0:00:07]}  Rc2+ {[%clk 0:00:03]} 74. Kf1 {[%clk 0:00:08]}  Kd3 {[%clk 0:00:03]} 75. Rh8 {[%clk 0:00:08]}  Rc1+ {[%clk 0:00:03]} 76. Kf2 {[%clk 0:00:08]}  e3+ {[%clk 0:00:03]} 77. Kf3 {[%clk 0:00:09]}  Rf1+ {[%clk 0:00:03]} 78. Kg2 {[%clk 0:00:09]}  e2 {[%clk 0:00:03]} 79. Rd8+ {[%clk 0:00:10]}  Kc4 {[%clk 0:00:03]} 80. Rc8+ {[%clk 0:00:10]}  Kb5 {[%clk 0:00:04]} 81. Re8 {[%clk 0:00:10]}  e1=Q {[%clk 0:00:04]} 82. Rxe1 {[%clk 0:00:11]}  Rxe1 {[%clk 0:00:04]} 83. Kf2 {[%clk 0:00:12]}  Re5 {[%clk 0:00:04]} 84. Kf3 {[%clk 0:00:12]}  Kc5 {[%clk 0:00:04]} 85. Kf4 {[%clk 0:00:13]}  Kd5 {[%clk 0:00:05]} 86. Kf3 {[%clk 0:00:14]}  Re4 {[%clk 0:00:05]} 87. Kf2 {[%clk 0:00:15]}  Ke5 {[%clk 0:00:05]} 88. Kf3 {[%clk 0:00:16]}  Kf5 {[%clk 0:00:06]} 89. Kf2 {[%clk 0:00:17]}  Kg4 {[%clk 0:00:06]} 90. Kg2 {[%clk 0:00:18]}  Re2+ {[%clk 0:00:06]} 91. Kf1 {[%clk 0:00:18]}  Kf3 {[%clk 0:00:06]} 0-1


[Site "https://www.chess.com"]

[Event "Titled Tuesday Blitz March 01 Late 2022"]
[White "Cardoso Cardoso, Jose Gabriel"]
[Black "Yuan, Qingyu"]
[WhiteFideId "4430492"]
[BlackFideId "8609772"]
[WhiteElo "2451"]
[BlackElo "2359"]
[Result "1-0"]
[Round "11"]
[TimeControl "180+1"]
[Date "2022.03.01"]
[WhiteClock "0:00:12"]
[BlackClock "0:00:02"]

1. e4 {[%clk 0:03:00]}  c5 {[%clk 0:03:00]} 2. Nc3 {[%clk 0:02:55]}  d6 {[%clk 0:03:00]} 3. f4 {[%clk 0:02:51]}  g6 {[%clk 0:03:00]} 4. Nf3 {[%clk 0:02:50]}  Bg7 {[%clk 0:03:00]} 5. Bc4 {[%clk 0:02:51]}  Nc6 {[%clk 0:03:00]} 6. O-O {[%clk 0:02:51]}  e6 {[%clk 0:03:00]} 7. f5 {[%clk 0:02:51]}  Nf6 {[%clk 0:02:57]} 8. d3 {[%clk 0:02:48]}  O-O {[%clk 0:02:53]} 9. Bg5 {[%clk 0:02:33]}  h6 {[%clk 0:02:47]} 10. Bh4 {[%clk 0:02:32]}  exf5 {[%clk 0:02:17]} 11. exf5 {[%clk 0:02:22]}  Bxf5 {[%clk 0:02:08]} 12. Nd5 {[%clk 0:02:21]}  g5 {[%clk 0:02:04]} 13. Nxg5 {[%clk 0:02:04]}  Nxd5 {[%clk 0:01:47]} 14. Rxf5 {[%clk 0:01:12]}  Ne3 {[%clk 0:01:46]} 15. Rxf7 {[%clk 0:01:04]}  hxg5 {[%clk 0:00:55]} 16. Rxf8+ {[%clk 0:00:33]}  Kxf8 {[%clk 0:00:54]} 17. Qf3+ {[%clk 0:00:29]}  Qf6 {[%clk 0:00:12]} 18. Qxe3 {[%clk 0:00:28]}  Re8 {[%clk 0:00:06]} 19. Qxg5 {[%clk 0:00:28]}  Qxg5 {[%clk 0:00:04]} 20. Bxg5 {[%clk 0:00:28]}  Bxb2 {[%clk 0:00:02]} 21. Rf1+ {[%clk 0:00:28]}  Kg7 {[%clk 0:00:02]} 22. Rf7+ {[%clk 0:00:29]}  Kg6 {[%clk 0:00:02]} 23. h4 {[%clk 0:00:29]}  Bd4+ {[%clk 0:00:02]} 24. Kh2 {[%clk 0:00:28]}  Ne5 {[%clk 0:00:02]} 25. Rf6+ {[%clk 0:00:23]}  Kg7 {[%clk 0:00:03]} 26. Rxd6 {[%clk 0:00:19]}  Nxc4 {[%clk 0:00:02]} 27. Rd7+ {[%clk 0:00:20]}  Kg6 {[%clk 0:00:02]} 28. dxc4 {[%clk 0:00:20]}  Re2 {[%clk 0:00:03]} 29. Kh3 {[%clk 0:00:18]}  Rxc2 {[%clk 0:00:02]} 30. Rd6+ {[%clk 0:00:17]}  Kf7 {[%clk 0:00:02]} 31. h5 {[%clk 0:00:16]}  Rxc4 {[%clk 0:00:01]} 32. h6 {[%clk 0:00:15]}  Be5 {[%clk 0:00:01]} 33. Rd5 {[%clk 0:00:14]}  Bd4 {[%clk 0:00:01]} 34. h7 {[%clk 0:00:12]}  Kg7 {[%clk 0:00:02]} 35. Rd7+ {[%clk 0:00:13]}  Kg6 {[%clk 0:00:02]} 36. Rxd4 {[%clk 0:00:11]}  Rc3+ {[%clk 0:00:02]} 37. Kg4 {[%clk 0:00:10]}  Kxh7 {[%clk 0:00:02]} 38. Rd7+ {[%clk 0:00:10]}  Kg6 {[%clk 0:00:03]} 39. Rd6+ {[%clk 0:00:11]}  Kf7 {[%clk 0:00:03]} 40. Kf5 {[%clk 0:00:12]}  Rc2 {[%clk 0:00:03]} 41. Rd7+ {[%clk 0:00:11]}  Ke8 {[%clk 0:00:03]} 42. Re7+ {[%clk 0:00:12]}  Kf8 {[%clk 0:00:03]} 43. Rxb7 {[%clk 0:00:12]}  Rxa2 {[%clk 0:00:03]} 44. Kg6 {[%clk 0:00:12]}  Rb2 {[%clk 0:00:02]} 45. Rxb2 {[%clk 0:00:12]}  Ke8 {[%clk 0:00:02]} 46. Rd2 {[%clk 0:00:12]} 1-0


[Site "https://www.chess.com"]

[Event "Titled Tuesday Blitz March 01 Late 2022"]
[White "Clawitter, Craig"]
[Black "Papayan, Oleg"]
[WhiteFideId "2023105"]
[BlackFideId "4193911"]
[WhiteElo "2228"]
[BlackElo "2038"]
[Result "1-0"]
[Round "11"]
[TimeControl "180+1"]
[Date "2022.03.02"]
[WhiteClock "0:00:09"]
[BlackClock "0:00:01"]

1. e4 {[%clk 0:03:00]}  e5 {[%clk 0:02:59]} 2. Nf3 {[%clk 0:03:00]}  Nc6 {[%clk 0:03:00]} 3. Bb5 {[%clk 0:03:01]}  Nf6 {[%clk 0:03:00]} 4. d3 {[%clk 0:03:00]}  Bc5 {[%clk 0:02:59]} 5. Bxc6 {[%clk 0:03:00]}  dxc6 {[%clk 0:02:59]} 6. Nbd2 {[%clk 0:03:01]}  Qe7 {[%clk 0:02:53]} 7. O-O {[%clk 0:03:01]}  Bg4 {[%clk 0:02:49]} 8. Nc4 {[%clk 0:02:55]}  O-O-O {[%clk 0:02:46]} 9. Qe2 {[%clk 0:02:39]}  Nd7 {[%clk 0:02:27]} 10. Be3 {[%clk 0:02:36]}  f6 {[%clk 0:02:23]} 11. a3 {[%clk 0:02:26]}  Nb6 {[%clk 0:01:51]} 12. Bxc5 {[%clk 0:02:15]}  Qxc5 {[%clk 0:01:50]} 13. Ne3 {[%clk 0:02:16]}  Bh5 {[%clk 0:01:33]} 14. Rfb1 {[%clk 0:01:59]}  g5 {[%clk 0:01:28]} 15. b4 {[%clk 0:01:54]}  Qe7 {[%clk 0:01:07]} 16. a4 {[%clk 0:01:43]}  g4 {[%clk 0:00:46]} 17. Nh4 {[%clk 0:01:34]}  Rdg8 {[%clk 0:00:46]} 18. a5 {[%clk 0:01:31]}  Nd7 {[%clk 0:00:45]} 19. a6 {[%clk 0:01:26]}  b6 {[%clk 0:00:41]} 20. b5 {[%clk 0:01:18]}  cxb5 {[%clk 0:00:24]} 21. Rxb5 {[%clk 0:01:08]}  Be8 {[%clk 0:00:23]} 22. Rb3 {[%clk 0:00:55]}  h5 {[%clk 0:00:20]} 23. Rc3 {[%clk 0:00:44]}  Nc5 {[%clk 0:00:15]} 24. Rd1 {[%clk 0:00:27]}  Bb5 {[%clk 0:00:13]} 25. Nef5 {[%clk 0:00:21]}  Qd7 {[%clk 0:00:09]} 26. Qe3 {[%clk 0:00:22]}  Nxa6 {[%clk 0:00:09]} 27. d4 {[%clk 0:00:20]}  Rd8 {[%clk 0:00:05]} 28. d5 {[%clk 0:00:15]}  Nc5 {[%clk 0:00:04]} 29. Rxc5 {[%clk 0:00:15]}  bxc5 {[%clk 0:00:05]} 30. Qxc5 {[%clk 0:00:15]}  a6 {[%clk 0:00:02]} 31. Qa7 {[%clk 0:00:13]}  Qe8 {[%clk 0:00:01]} 32. d6 {[%clk 0:00:10]}  cxd6 {[%clk 0:00:01]} 33. Nxd6+ {[%clk 0:00:08]}  Rxd6 {[%clk 0:00:01]} 34. Rxd6 {[%clk 0:00:09]} 1-0


[Site "https://www.chess.com"]

[Event "Titled Tuesday Blitz March 01 Late 2022"]
[White "Dobre, Claudiu-Cristian"]
[Black "Mikhalsky, Vladimir"]
[WhiteFideId "1211854"]
[BlackFideId "14144352"]
[WhiteElo "2207"]
[BlackElo "2248"]
[Result "0-1"]
[Round "11"]
[TimeControl "180+1"]
[Date "2022.03.02"]
[WhiteClock "0:00:01"]
[BlackClock "0:00:09"]

1. c4 {[%clk 0:03:00]}  c5 {[%clk 0:02:59]} 2. Nf3 {[%clk 0:03:00]}  Nf6 {[%clk 0:02:59]} 3. Nc3 {[%clk 0:03:00]}  d5 {[%clk 0:02:59]} 4. cxd5 {[%clk 0:03:00]}  Nxd5 {[%clk 0:02:58]} 5. g3 {[%clk 0:03:00]}  Nc6 {[%clk 0:02:58]} 6. Bg2 {[%clk 0:03:00]}  Nc7 {[%clk 0:02:58]} 7. d3 {[%clk 0:02:58]}  e5 {[%clk 0:02:58]} 8. Nd2 {[%clk 0:02:59]}  Bd7 {[%clk 0:02:57]} 9. Nc4 {[%clk 0:02:58]}  f6 {[%clk 0:02:57]} 10. f4 {[%clk 0:02:55]}  exf4 {[%clk 0:02:56]} 11. Bxf4 {[%clk 0:02:54]}  Be6 {[%clk 0:02:42]} 12. Bxc6+ {[%clk 0:02:46]}  bxc6 {[%clk 0:02:41]} 13. Qa4 {[%clk 0:02:46]}  Qd7 {[%clk 0:02:37]} 14. O-O-O {[%clk 0:02:27]}  Be7 {[%clk 0:02:24]} 15. Bxc7 {[%clk 0:02:26]}  Qxc7 {[%clk 0:02:23]} 16. Kb1 {[%clk 0:02:22]}  O-O {[%clk 0:02:22]} 17. Rc1 {[%clk 0:02:22]}  Rab8 {[%clk 0:02:18]} 18. Ne4 {[%clk 0:02:07]}  Rb5 {[%clk 0:02:09]} 19. Ka1 {[%clk 0:01:50]}  Rfb8 {[%clk 0:02:05]} 20. Qc2 {[%clk 0:01:50]}  f5 {[%clk 0:01:52]} 21. Nc3 {[%clk 0:01:47]}  Bxc4 {[%clk 0:01:43]} 22. dxc4 {[%clk 0:01:39]}  Rxb2 {[%clk 0:01:43]} 23. Qxb2 {[%clk 0:01:14]}  Rxb2 {[%clk 0:01:41]} 24. Kxb2 {[%clk 0:01:15]}  Qb6+ {[%clk 0:01:39]} 25. Kc2 {[%clk 0:01:14]}  Bf6 {[%clk 0:01:38]} 26. Rb1 {[%clk 0:01:10]}  Qa6 {[%clk 0:01:28]} 27. Kd3 {[%clk 0:01:05]}  Bxc3 {[%clk 0:01:20]} 28. Kxc3 {[%clk 0:01:05]}  Qa5+ {[%clk 0:01:16]} 29. Kd3 {[%clk 0:00:55]}  Qxa2 {[%clk 0:01:14]} 30. Rhc1 {[%clk 0:00:54]}  Qa3+ {[%clk 0:01:10]} 31. Rc3 {[%clk 0:00:54]}  Qa2 {[%clk 0:01:06]} 32. Rcb3 {[%clk 0:00:54]}  h6 {[%clk 0:01:04]} 33. h4 {[%clk 0:00:52]}  a5 {[%clk 0:01:02]} 34. R3b2 {[%clk 0:00:41]}  Qa3+ {[%clk 0:01:00]} 35. Rb3 {[%clk 0:00:41]}  Qa4 {[%clk 0:00:54]} 36. h5 {[%clk 0:00:39]}  Kf7 {[%clk 0:00:51]} 37. Rb7+ {[%clk 0:00:27]}  Kf6 {[%clk 0:00:51]} 38. Rd7 {[%clk 0:00:19]}  Qa3+ {[%clk 0:00:45]} 39. Kc2 {[%clk 0:00:17]}  Qxg3 {[%clk 0:00:44]} 40. Rbb7 {[%clk 0:00:15]}  Ke5 {[%clk 0:00:30]} 41. Rxg7 {[%clk 0:00:15]}  Qf2 {[%clk 0:00:30]} 42. Rbe7+ {[%clk 0:00:14]}  Kd4 {[%clk 0:00:29]} 43. Kb3 {[%clk 0:00:12]}  a4+ {[%clk 0:00:25]} 44. Kxa4 {[%clk 0:00:11]}  Kxc4 {[%clk 0:00:25]} 45. Ka3 {[%clk 0:00:10]}  Qe1 {[%clk 0:00:22]} 46. Kb2 {[%clk 0:00:10]}  Qd2+ {[%clk 0:00:21]} 47. Kb1 {[%clk 0:00:09]}  Kc3 {[%clk 0:00:20]} 48. Rg3+ {[%clk 0:00:09]}  Kb4 {[%clk 0:00:20]} 49. Rd3 {[%clk 0:00:09]}  Qe1+ {[%clk 0:00:19]} 50. Kc2 {[%clk 0:00:09]}  c4 {[%clk 0:00:19]} 51. Rb7+ {[%clk 0:00:09]}  Kc5 {[%clk 0:00:19]} 52. Re3 {[%clk 0:00:08]}  Qf2 {[%clk 0:00:19]} 53. Re5+ {[%clk 0:00:07]}  Kd4 {[%clk 0:00:18]} 54. Rbe7 {[%clk 0:00:07]}  Qe1 {[%clk 0:00:16]} 55. Re3 {[%clk 0:00:06]}  f4 {[%clk 0:00:14]} 56. Rf3 {[%clk 0:00:06]}  Qb4 {[%clk 0:00:12]} 57. Rxf4+ {[%clk 0:00:05]}  Kd5 {[%clk 0:00:12]} 58. Rf5+ {[%clk 0:00:03]}  Kd6 {[%clk 0:00:12]} 59. Re3 {[%clk 0:00:03]}  Qa4+ {[%clk 0:00:11]} 60. Kd2 {[%clk 0:00:03]}  Qa2+ {[%clk 0:00:11]} 61. Kc3 {[%clk 0:00:03]}  Qa1+ {[%clk 0:00:10]} 62. Kxc4 {[%clk 0:00:02]}  Qc1+ {[%clk 0:00:10]} 63. Kd3 {[%clk 0:00:03]}  Qb1+ {[%clk 0:00:09]} 64. Kd2 {[%clk 0:00:03]}  Qxf5 {[%clk 0:00:09]} 65. Rf3 {[%clk 0:00:02]}  Qg5+ {[%clk 0:00:08]} 66. Re3 {[%clk 0:00:02]}  Kc7 {[%clk 0:00:08]} 67. Kd3 {[%clk 0:00:02]}  c5 {[%clk 0:00:09]} 68. Re4 {[%clk 0:00:01]}  Kc6 {[%clk 0:00:09]} 69. Re6+ {[%clk 0:00:01]}  Kd5 {[%clk 0:00:09]} 0-1


[Site "https://www.chess.com"]